Workbook

Sheet Лист1
A1: Школа | C1: МАОУ ООШ д.Шаровка Белебеевский район | F1: Утвердил: | G1: должность | H1: Директор ООО "Комбинат питания"
A2: Типовое примерное меню приготавливаемых блюд | G2: фамилия | H2: С.Б.Багаутдинов
A3: Возрастная категория | E3: 7-11 лет | G3: дата | H3: 12 | I3: 1 | J3: 2026
H4: день | I4: месяц | J4: год
A5: Неделя | B5: День недели | C5: Прием пищи | D5: Раздел меню | E5: Блюда | F5: Вес блюда, г | G5: Белки | H5: Жиры | I5: Углеводы | J5: Калорийность | K5: № рецептуры | L5: Цена
A6: 1 | B6: 1 | C6: Завтрак | D6: гор.блюдо | E6: Макаронные изделия с тертым сыром | F6: 180 | G6: 13.40 | H6: 12.80 | I6: 32.20 | J6: 293.00 | K6: шм08003 | L6: 51.26
D8: гор.напиток | E8: Чай с сахаром | F8: 200 | G8: 0.10 | H8: 0.03 | I8: 9.10 | J8: 35.00 | K8: су13/0* | L8: 2.30
D9: хлеб | E9: Хлеб пшеничный витаминизированный,масло порционное | F9: 48 | G9: 3.20 | H9: 4.40 | I9: 18.80 | J9: 166.00 | K9: дп00007 | L9: 10.90
D10: фрукты | E10: Яблоки | F10: 100 | G10: 0.30 | H10: 0.40 | I10: 13.80 | J10: 68.00 | K10: дп00340 | L10: 12.50
D13: итого | F13: =+F6+F8+F9+F10 -> 528 | G13: =+G6+G8+G9+G10 -> 17.00 | H13: =+H6+H8+H9+H10 -> 17.63 | I13: =+I6+I8+I9+I10 -> 73.90 | J13: =+J6+J8+J9+J10 -> 562.00 | L13: =+L6+L8+L9+L10 -> 76.96
A14: 1 | B14: 1 | C14: Обед | D14: закуска
D15: 1 блюдо
D16: 2 блюдо
D17: гарнир
D18: напиток
D19: хлеб бел.
D20: хлеб черн.
D23: итого
A24: 1 | B24: 1 | C24: Итого за день: | F24: =+F13+F23 -> 528 | G24: =+G13+G23 -> 17.00 | H24: =+H13+H23 -> 17.63 | I24: =+I13+I23 -> 73.90 | J24: =+J13+J23 -> 562.00 | L24: 0.00
A25: 1 | B25: 2 | C25: Завтрак | D25: гор.блюдо | E25: Каша рисовая молочная вязкая с маслом | F25: 205 | G25: 6.25 | H25: 10.77 | I25: 20.75 | J25: 226.00 | K25: су07015 | L25: 41.40
D27: гор.напиток | E27: Чай с сахаром | F27: 200 | G27: 0.10 | H27: 0.03 | I27: 9.10 | J27: 35.00 | K27: су13/0* | L27: 3.00
D28: хлеб | E28: Хлеб пшеничный витаминизированный,сыр порционный | F28: 60 | G28: 6.75 | H28: 3.50 | I28: 28.00 | J28: 194.00 | K28: дп0005* | L28: 12.56
D29: фрукты
D30: сладкое | E30: Кекс с начинкой для детского питания | F30: 35 | G30: 3.00 | H30: 3.20 | I30: 25.15 | J30: 125.00 | K30: Дн123** | L30: 20.00
D32: итого | F32: =+F25+F27+F28+F30 -> 500 | G32: =+G25+G27+G28+G30 -> 16.10 | H32: =+H25+H27+H28+H30 -> 17.50 | I32: =+I25+I27+I28+I30 -> 83.00 | J32: =+J25+J27+J28+J30 -> 580.00 | L32: =+L25+L27+L28+L30 -> 76.96
A33: 1 | B33: 2 | C33: Обед | D33: закуска
D34: 1 блюдо
D35: 2 блюдо
D36: гарнир
D37: напиток
D38: хлеб бел.
D39: хлеб черн.
D42: итого
A43: 1 | B43: 2 | C43: Итого за день: | F43: =+F32+F42 -> 500 | G43: =+G32+G42 -> 16.10 | H43: =+H32+H42 -> 17.50 | I43: =+I32+I42 -> 83.00 | J43: =+J32+J42 -> 580.00 | L43: 0.00
A44: 1 | B44: 3 | C44: Завтрак | D44: гор.блюдо | E44: Запеканка из творога со сгущёнкой | F44: 150 | G44: 15.67 | H44: 18.98 | I44: 35.00 | J44: 340.00 | K44: ДН00045 | L44: 58.25
D46: гор.напиток | E46: Чай с сахаром | F46: 200 | G46: 0.10 | H46: 0.03 | I46: 9.10 | J46: 35.00 | K46: су13/0* | L46: 1.56
D47: хлеб | E47: Хлеб пшеничный витаминизированный | F47: 40 | G47: 3.20 | H47: 0.40 | I47: 18.80 | J47: 104.00 | K47: ДП00007 | L47: 3.40
D48: фрукты | E48: Яблоки | F48: 110 | G48: 0.22 | I48: 14.62 | J48: 97.00 | K48: ДН00340 | L48: 13.75
D51: итого | F51: =+F44+F46+F47+F48 -> 500 | G51: =+G44+G46+G47+G48 -> 19.19 | H51: =+H44+H46+H47 -> 19.41 | I51: =+I44+I46+I47+I48 -> 77.52 | J51: =+J44+J46+J47+J48 -> 576.00 | L51: =+L44+L46+L47+L48 -> 76.96
A52: 1 | B52: 3 | C52: Обед | D52: закуска
D53: 1 блюдо
D54: 2 блюдо
D55: гарнир
D56: напиток
D57: хлеб бел.
D58: хлеб черн.
D61: итого
A62: 1 | B62: 3 | C62: Итого за день: | F62: =+F51+F61 -> 500 | G62: =+G51+G61 -> 19.19 | H62: =+H51+H61 -> 19.41 | I62: =+I51+I61 -> 77.52 | J62: =+J51+J61 -> 576.00 | L62: 0.00
A63: 1 | B63: 4 | C63: Завтрак | D63: гор.блюдо | E63: Биточки рыбные с соусом томатным | F63: 90 | G63: 9.91 | H63: 11.46 | I63: 4.25 | J63: 164.00 | K63: днп024* | L63: 40.74
D64: гор.блюдо | E64: Каша рисовая рассыпчатая | F64: 155 | G64: 3.60 | H64: 3.94 | I64: 37.20 | J64: 201.00 | K64: СУ070/6 | L64: 16.57
D65: гор.напиток | E65: Чай с сахаром и лимоном | F65: 200 | G65: 0.19 | I65: 9.30 | J65: 37.00 | K65: дп0033/ | L65: 3.75
D66: хлеб | E66: Хлеб пшеничный витаминизированный | F66: 40 | G66: 3.20 | H66: 0.40 | I66: 18.80 | J66: 104.00 | K66: ДП00007 | L66: 3.40
D67: фрукты | E67: Яблоки | F67: 100 | G67: 0.30 | H67: 0.40 | I67: 13.80 | J67: 68.00 | K67: дп00340 | L67: 12.50
D70: итого | F70: =+F63+F64+F65+F66+F67 -> 585 | G70: =+G63+G64+G65+G66+G67 -> 17.20 | H70: =+H63+H64+H65+H66+H67 -> 16.20 | I70: =+I63+I64+I65+I66+I67 -> 83.35 | J70: =+J63+J64+J65+J66+J67 -> 574.00 | L70: =+L63+L64+L65+L66+L67 -> 76.96
B71: 4 | C71: Обед | D71: закуска
D72: 1 блюдо
D73: 2 блюдо
D74: гарнир
D75: напиток
D76: хлеб бел.
D77: хлеб черн.
D80: итого
A81: 1 | B81: 4 | C81: Итого за день: | F81: =+F70+F80 -> 585 | G81: =+G70+G80 -> 17.20 | H81: =+H70+H80 -> 16.20 | I81: =+I70+I80 -> 83.35 | J81: =+J70+J80 -> 574.00 | L81: 0.00
A82: 1 | B82: 5 | C82: Завтрак | D82: гор.блюдо | E82: Наггетсы из мяса птицы с соусом | F82: 90 | G82: 8.30 | H82: 11.36 | I82: 9.62 | J82: 197.00 | K82: СВ*4009 | L82: 43.93
D83: гор.блюдо | E83: Картофельное пюре | F83: 150 | G83: 6.08 | H83: 4.92 | I83: 27.00 | J83: 148.00 | K83: ну06003 | L83: 20.38
D84: гор.напиток | E84: Чай витаминизированный | F84: 200 | G84: 0.10 | H84: 0.03 | I84: 9.10 | J84: 35.00 | K84: дп**334 | L84: 7.55
D85: хлеб | E85: Хлеб пшеничный витаминизированный | F85: 60 | G85: 2.00 | H85: 0.60 | I85: 38.00 | J85: 156.00 | K85: дп000*5 | L85: 5.10
D86: фрукты
D89: итого | F89: =+F82+F83+F84+F85 -> 500 | G89: =+G82+G83+G84+G85 -> 16.48 | H89: =+H82+H83+H84+H85 -> 16.91 | I89: =+I82+I83+I84+I85 -> 83.72 | J89: =+J82+J83+J84+J85 -> 536.00 | L89: =+L82+L83+L85+L84 -> 76.96
A90: 1 | B90: 5 | C90: Обед | D90: закуска
D91: 1 блюдо
D92: 2 блюдо
D93: гарнир
D94: напиток
D95: хлеб бел.
D96: хлеб черн.
D99: итого
A100: 1 | B100: 5 | C100: Итого за день: | F100: =+F89+F99 -> 500 | G100: =+G89+G99 -> 16.48 | H100: =+H89+H99 -> 16.91 | I100: =+I89+I99 -> 83.72 | J100: =+J89+J99 -> 536.00 | L100: 0.00
A101: 2 | B101: 1 | C101: Завтрак | D101: гор.блюдо | E101: Котлеты из филе кур. с том.соусом | F101: 90 | G101: 9.50 | H101: 12.36 | I101: 17.62 | J101: 227.00 | K101: св*4000 | L101: 54.67
D102: гор.блюдо | E102: Макаронные изделия отварные | F102: 185 | G102: 3.60 | H102: 4.70 | I102: 37.40 | J102: 190.00 | K102: ШМ08001 | L102: 16.47
D103: гор.напиток | E103: Чай с сахаром | F103: 200 | G103: 0.10 | H103: 0.03 | I103: 9.10 | J103: 35.00 | K103: су13/0* | L103: 2.42
D104: хлеб | E104: Хлеб пшеничный витаминизированный | F104: 40 | G104: 3.20 | H104: 0.40 | I104: 18.80 | J104: 104.00 | K104: ДП00007 | L104: 3.40
D105: фрукты
D108: итого | F108: =+F101+F102+F103+F104 -> 515 | G108: =+G101+G102+G103+G104 -> 16.40 | H108: =+H101+H102+H103+H104 -> 17.49 | I108: =+I101+I102+I103+I104 -> 82.92 | J108: =+J101+J102+J103+J104 -> 556.00 | L108: =+L101+L102+L103+L104 -> 76.96
A109: 2 | B109: 1 | C109: Обед | D109: закуска
D110: 1 блюдо
D111: 2 блюдо
D112: гарнир
D113: напиток
D114: хлеб бел.
D115: хлеб черн.
D118: итого
A119: 2 | B119: 1 | C119: Итого за день: | F119: =+F108+F118 -> 515 | G119: =+G108+G118 -> 16.40 | H119: =+H108+H118 -> 17.49 | I119: =+I108+I118 -> 82.92 | J119: =+J108+J118 -> 556.00 | L119: 0.00
A120: 2 | B120: 2 | C120: Завтрак | D120: гор.блюдо | E120: Каша молочная 'Дружба' | F120: 185 | G120: 10.66 | H120: 12.70 | I120: 29.50 | J120: 209.00 | K120: шм07015 | L120: 44.91
D122: гор.напиток | E122: Чай с сахаром и лимоном | F122: 200 | G122: 0.19 | I122: 9.30 | J122: 37.00 | K122: дп0033/ | L122: 7.84
D123: хлеб | E123: Хлеб пшеничный витаминизированный, сыр порционный | F123: 50 | G123: 7.80 | H123: 3.40 | I123: 18.80 | J123: 168.00 | K123: дп00007 | L123: 11.71
D124: фрукты | E124: Яблоки | F124: 100 | G124: 0.30 | H124: 0.40 | I124: 13.80 | J124: 68.00 | K124: ДП00340 | L124: 12.50
D127: итого | F127: =SUM(F120:F126) -> 535 | G127: =SUM(G120:G126) -> 18.95 | H127: =SUM(H120:H126) -> 16.50 | I127: =SUM(I120:I126) -> 71.40 | J127: =SUM(J120:J126) -> 482.00 | L127: =SUM(L120:L126) -> 76.96
A128: 2 | B128: 2 | C128: Обед | D128: закуска
D129: 1 блюдо
D130: 2 блюдо
D131: гарнир
D132: напиток
D133: хлеб бел.
D134: хлеб черн.
D137: итого
A138: 2 | B138: 2 | C138: Итого за день: | F138: =+F127+F137 -> 535 | G138: =+G127+G137 -> 18.95 | H138: =+H127+H137 -> 16.50 | I138: =+I127+I137 -> 71.40 | J138: =+J127+J137 -> 482.00 | L138: 0.00
A139: 2 | B139: 3 | C139: Завтрак | D139: гор.блюдо | E139: Гуляш из мяса говядины | F139: 92 | G139: 10.16 | H139: 14.11 | I139: 6.91 | J139: 205.00 | K139: ДП***00 | L139: 67.02
D140: гор.блюдо | E140: Каша ячневая вязкая | F140: 154 | G140: 3.89 | H140: 5.00 | I140: 20.00 | J140: 184.00 | K140: ДП010АА | L140: 2.72
D141: гор.напиток | E141: Чай с сахаром | F141: 200 | G141: 0.10 | H141: 0.03 | I141: 9.10 | J141: 35.00 | K141: су13/0* | L141: 2.12
D142: хлеб | E142: Хлеб пшеничный витаминизированный | F142: 60 | G142: 2.00 | H142: 0.60 | I142: 38.00 | J142: 156.00 | K142: ДП000*5 | L142: 5.10
D143: фрукты
D146: итого | F146: =SUM(F139:F145) -> 506 | G146: =SUM(G139:G145) -> 16.15 | H146: =SUM(H139:H145) -> 19.74 | I146: =SUM(I139:I145) -> 74.01 | J146: =SUM(J139:J145) -> 580.00 | L146: =SUM(L139:L145) -> 76.96
A147: 2 | B147: 3 | C147: Обед | D147: закуска
D148: 1 блюдо
D149: 2 блюдо
D150: гарнир
D151: напиток
D152: хлеб бел.
D153: хлеб черн.
D156: итого
A157: 2 | B157: 3 | C157: Итого за день: | F157: =+F146+F156 -> 506 | G157: =+G146+G156 -> 16.15 | H157: =+H146+H156 -> 19.74 | I157: =+I146+I156 -> 74.01 | J157: =+J146+J156 -> 580.00 | L157: 0.00
A158: 2 | B158: 4 | C158: Завтрак | D158: закуска | E158: Салат из белокач.кап.новый урожай// | F158: 60 | G158: 0.61 | H158: 0.95 | I158: 7.90 | J158: 68.00 | K158: ДП03229 | L158: 6.60
D159: гор.блюдо | E159: Плов из курицы(филе курицы) | F159: 180 | G159: 15.10 | H159: 18.40 | I159: 23.40 | J159: 324.00 | K159: дп*0194 | L159: 55.88
D160: гор.напиток | E160: Чай витаминизированный | F160: 200 | G160: 0.10 | H160: 0.03 | I160: 9.10 | J160: 35.00 | K160: дп**334 | L160: 9.38
D161: хлеб | E161: Хлеб пшеничный витаминизированный | F161: 60 | G161: 2.00 | H161: 0.60 | I161: 38.00 | J161: 156.00 | K161: ДП000*5 | L161: 5.10
D162: фрукты
D165: итого | F165: =SUM(F158:F164) -> 500 | G165: =SUM(G158:G164) -> 17.81 | H165: =SUM(H158:H164) -> 19.98 | I165: =SUM(I158:I164) -> 78.40 | J165: =SUM(J158:J164) -> 583.00 | L165: =SUM(L158:L164) -> 76.96
A166: 2 | B166: 4 | C166: Обед | D166: закуска
D167: 1 блюдо
D168: 2 блюдо
D169: гарнир
D170: напиток
D171: хлеб бел.
D172: хлеб черн.
D175: итого
A176: 2 | B176: 4 | C176: Итого за день: | F176: =+F165+F175 -> 500 | G176: =+G165+G175 -> 17.81 | H176: =+H165+H175 -> 19.98 | I176: =+I165+I175 -> 78.40 | J176: =+J165+J175 -> 583.00 | L176: 0.00
A177: 2 | B177: 5 | C177: Завтрак | D177: гор.блюдо | E177: Котлеты 'Нежные' с соусом | F177: 90 | G177: 12.36 | H177: 14.53 | I177: 9.30 | J177: 167.00 | K177: сз*5000 | L177: 48.56
D178: гор.блюдо | E178: Макаронные изделия отварные с маслом | F178: 155 | G178: 2.50 | H178: 3.81 | I178: 24.00 | J178: 165.00 | K178: дп001*/ | L178: 12.24
D179: гор.напиток | E179: Чай с сахаром | F179: 200 | G179: 0.10 | H179: 0.03 | I179: 9.10 | J179: 35.00 | K179: су13/0* | L179: 1.96
D180: хлеб | E180: Хлеб пшеничный витаминизированный | F180: 20 | G180: 2.00 | H180: 0.20 | I180: 11.20 | J180: 83.00 | K180: дп000** | L180: 1.70
D181: фрукты | E181: Яблоки | F181: 100 | G181: 0.30 | H181: 0.40 | I181: 13.80 | J181: 68.00 | K181: ДП00340 | L181: 12.50
D184: итого | F184: =SUM(F177:F183) -> 565 | G184: =SUM(G177:G183) -> 17.26 | H184: =SUM(H177:H183) -> 18.97 | I184: =SUM(I177:I183) -> 67.40 | J184: =SUM(J177:J183) -> 518.00 | L184: =SUM(L177:L183) -> 76.96
A185: 2 | B185: 5 | C185: Обед | D185: закуска
D186: 1 блюдо
D187: 2 блюдо
D188: гарнир
D189: напиток
D190: хлеб бел.
D191: хлеб черн.
D194: итого
A195: 2 | B195: 5 | C195: Итого за день: | F195: =+F184+F194 -> 565 | G195: =+G184+G194 -> 17.26 | H195: =+H184+H194 -> 18.97 | I195: =+I184+I194 -> 67.40 | J195: =+J184+J194 -> 518.00 | L195: 0.00
C196: Среднее значение за период: | F196: 1,238 | G196: 42.39 | H196: 44.45 | I196: 183.02 | J196: 1295.70

Sheet Лист2

Sheet Лист3
